[Event "Early-Titled-Tuesday-Blitz-February-13-2024"]
[Site "Chess.com"]
[Date "2024.02.13"]
[Round "10"]
[White "banhgiahuy2606"]
[Black "AttilaTurzo"]
[Result "1-0"]
[WhiteElo "2679"]
[BlackElo "2481"]
[TimeControl "180+1"]
[EndTime "9:57:11 PST"]
[Termination "banhgiahuy2606 won by resignation"]

1. c4 {[%clk 0:03:00.9]} 1... Nf6 {[%clk 0:02:57.2]} 2. Nf3 {[%clk 0:02:58.7]}
2... e6 {[%clk 0:02:56]} 3. g3 {[%clk 0:02:58.1]} 3... d5 {[%clk 0:02:55.3]} 4.
Bg2 {[%clk 0:02:58.6]} 4... Be7 {[%clk 0:02:55.3]} 5. O-O {[%clk 0:02:57.7]}
5... O-O {[%clk 0:02:55]} 6. b3 {[%clk 0:02:57.2]} 6... c6 {[%clk 0:02:47.3]} 7.
Bb2 {[%clk 0:02:55.7]} 7... Nbd7 {[%clk 0:02:47]} 8. d4 {[%clk 0:02:54.5]} 8...
b6 {[%clk 0:02:45.5]} 9. Nc3 {[%clk 0:02:54.8]} 9... Ba6 {[%clk 0:02:45]} 10.
Nd2 {[%clk 0:02:54.8]} 10... Rc8 {[%clk 0:02:41.2]} 11. e4 {[%clk 0:02:48.7]}
11... Bb7 {[%clk 0:02:24.8]} 12. cxd5 {[%clk 0:02:39]} 12... cxd5 {[%clk
0:02:22.8]} 13. e5 {[%clk 0:02:39.5]} 13... Ne8 {[%clk 0:02:21.5]} 14. f4 {[%clk
0:02:36]} 14... Ba6 {[%clk 0:02:03.3]} 15. Rf2 {[%clk 0:02:27.6]} 15... Bd3
{[%clk 0:01:54.6]} 16. Nf3 {[%clk 0:02:22.9]} 16... Bg6 {[%clk 0:01:45.1]} 17.
g4 {[%clk 0:02:16.7]} 17... f5 {[%clk 0:01:44.2]} 18. exf6 {[%clk 0:02:12.1]}
18... Nexf6 {[%clk 0:01:36.3]} 19. Ng5 {[%clk 0:02:09.8]} 19... Rc6 {[%clk
0:01:24.8]} 20. Qe2 {[%clk 0:02:09.4]} 20... Bf7 {[%clk 0:01:14.2]} 21. Nxf7
{[%clk 0:02:03]} 21... Rxf7 {[%clk 0:01:12.4]} 22. g5 {[%clk 0:01:59.5]} 22...
Ne8 {[%clk 0:01:09.1]} 23. f5 {[%clk 0:01:59.8]} 23... Nc7 {[%clk 0:01:01.8]}
24. fxe6 {[%clk 0:01:51.7]} 24... Rxe6 {[%clk 0:01:01]} 25. Qc2 {[%clk
0:01:47.1]} 25... Rxf2 {[%clk 0:00:53.5]} 26. Qxf2 {[%clk 0:01:48]} 26... Nf8
{[%clk 0:00:51.5]} 27. Rf1 {[%clk 0:01:43.5]} 27... Bxg5 {[%clk 0:00:28.9]} 28.
Qf7+ {[%clk 0:01:41.7]} 28... Kh8 {[%clk 0:00:26.1]} 29. Qxf8+ {[%clk
0:01:40.1]} 1-0

[Event "Early-Titled-Tuesday-Blitz-February-13-2024"]
[Site "Chess.com"]
[Date "2024.02.13"]
[Round "10"]
[White "GelmanAlexander"]
[Black "Bilan_Danila"]
[Result "1-0"]
[WhiteElo "2760"]
[BlackElo "2554"]
[TimeControl "180+1"]
[EndTime "9:57:17 PST"]
[Termination "GelmanAlexander won on time"]

1. d4 {[%clk 0:03:00.9]} 1... d5 {[%clk 0:02:59.9]} 2. Nc3 {[%clk 0:03:01.1]}
2... Nf6 {[%clk 0:02:59]} 3. Bf4 {[%clk 0:03:01.7]} 3... c6 {[%clk 0:02:59.1]}
4. f3 {[%clk 0:03:01.8]} 4... g6 {[%clk 0:02:55.9]} 5. e4 {[%clk 0:03:01.9]}
5... Bg7 {[%clk 0:02:56.2]} 6. Qd2 {[%clk 0:03:01.8]} 6... O-O {[%clk 0:02:56]}
7. e5 {[%clk 0:02:58.9]} 7... Nfd7 {[%clk 0:02:52.5]} 8. h4 {[%clk 0:02:56.5]}
8... f6 {[%clk 0:02:46.9]} 9. exf6 {[%clk 0:02:38.1]} 9... Nxf6 {[%clk
0:02:39.9]} 10. g4 {[%clk 0:02:34.9]} 10... Re8 {[%clk 0:02:20.9]} 11. O-O-O
{[%clk 0:02:34.2]} 11... e6 {[%clk 0:02:07.2]} 12. h5 {[%clk 0:02:34.3]} 12...
gxh5 {[%clk 0:01:56.8]} 13. g5 {[%clk 0:02:27.9]} 13... Nfd7 {[%clk 0:01:54.2]}
14. Rxh5 {[%clk 0:02:25.5]} 14... e5 {[%clk 0:01:40.6]} 15. dxe5 {[%clk
0:02:19.7]} 15... Nxe5 {[%clk 0:01:33.5]} 16. Bd3 {[%clk 0:02:17.4]} 16... Ng6
{[%clk 0:01:17.1]} 17. Rxh7 {[%clk 0:02:06.1]} 17... Kxh7 {[%clk 0:00:55.1]} 18.
Qh2+ {[%clk 0:02:05.2]} 18... Kg8 {[%clk 0:00:43.7]} 19. Bxg6 {[%clk 0:02:05.3]}
19... Be6 {[%clk 0:00:12]} 20. Bd6 {[%clk 0:01:47.2]} 20... Re7 {[%clk 0:00:04]}
21. Nge2 {[%clk 0:01:34.7]} 1-0

[Event "Early-Titled-Tuesday-Blitz-February-13-2024"]
[Site "Chess.com"]
[Date "2024.02.13"]
[Round "10"]
[White "FMStan15"]
[Black "JaackCamel"]
[Result "1-0"]
[WhiteElo "2046"]
[BlackElo "2191"]
[TimeControl "180+1"]
[EndTime "9:57:20 PST"]
[Termination "FMStan15 won on time"]

1. e4 {[%clk 0:02:58.2]} 1... e6 {[%clk 0:02:59.8]} 2. d4 {[%clk 0:02:57.5]}
2... d5 {[%clk 0:02:59.8]} 3. e5 {[%clk 0:02:57.2]} 3... c5 {[%clk 0:02:59.5]}
4. c3 {[%clk 0:02:56.4]} 4... Nc6 {[%clk 0:02:58.6]} 5. Nf3 {[%clk 0:02:56.7]}
5... Qb6 {[%clk 0:02:57.8]} 6. Bd3 {[%clk 0:02:56.3]} 6... cxd4 {[%clk
0:02:55.5]} 7. cxd4 {[%clk 0:02:56.2]} 7... Bd7 {[%clk 0:02:55.2]} 8. Be2 {[%clk
0:02:56]} 8... Nh6 {[%clk 0:02:52.9]} 9. Nc3 {[%clk 0:02:53.8]} 9... Nf5 {[%clk
0:02:49.2]} 10. Na4 {[%clk 0:02:54]} 10... Bb4+ {[%clk 0:02:34.8]} 11. Kf1
{[%clk 0:02:52]} 11... Qa5 {[%clk 0:02:13.5]} 12. a3 {[%clk 0:02:47.3]} 12...
Be7 {[%clk 0:02:11.8]} 13. b4 {[%clk 0:02:47.5]} 13... Qc7 {[%clk 0:02:07.1]}
14. Nc5 {[%clk 0:02:47.3]} 14... O-O {[%clk 0:01:58.4]} 15. Nxd7 {[%clk
0:02:45.1]} 15... Qxd7 {[%clk 0:01:57.7]} 16. Bb2 {[%clk 0:02:45.4]} 16... h6
{[%clk 0:01:45.7]} 17. Bd3 {[%clk 0:02:44.7]} 17... Bd8 {[%clk 0:01:39.8]} 18.
Rc1 {[%clk 0:02:43]} 18... Nce7 {[%clk 0:01:38.1]} 19. Bb1 {[%clk 0:02:38.3]}
19... g6 {[%clk 0:01:29.5]} 20. Qd2 {[%clk 0:02:34.9]} 20... Kh7 {[%clk
0:01:24.5]} 21. g4 {[%clk 0:02:33.5]} 21... Ng7 {[%clk 0:01:23]} 22. Rc3 {[%clk
0:02:32.1]} 22... Rc8 {[%clk 0:01:20.2]} 23. Bc1 {[%clk 0:02:30.9]} 23... Ng8
{[%clk 0:01:16.7]} 24. h4 {[%clk 0:02:24.3]} 24... Rxc3 {[%clk 0:01:15.7]} 25.
Qxc3 {[%clk 0:02:24.6]} 25... Qc6 {[%clk 0:01:12.7]} 26. Qd2 {[%clk 0:02:15.3]}
26... Qc4+ {[%clk 0:01:07.3]} 27. Bd3 {[%clk 0:02:11.3]} 27... Qb3 {[%clk
0:00:56.8]} 28. h5 {[%clk 0:02:07.9]} 28... a5 {[%clk 0:00:14.3]} 29. hxg6+
{[%clk 0:02:06.2]} 29... fxg6 {[%clk 0:00:12.8]} 30. Rxh6+ {[%clk 0:02:03.4]}
30... Nxh6 {[%clk 0:00:12.7]} 31. Qxh6+ {[%clk 0:02:02.6]} 31... Kg8 {[%clk
0:00:13]} 32. Bxg6 {[%clk 0:02:01.6]} 32... Rxf3 {[%clk 0:00:11.6]} 33. Qh7+
{[%clk 0:02:01.6]} 33... Kf8 {[%clk 0:00:11.6]} 34. Qh8+ {[%clk 0:02:02.1]}
34... Ke7 {[%clk 0:00:11.1]} 35. Qxg7+ {[%clk 0:02:02.4]} 1-0

[Event "Early-Titled-Tuesday-Blitz-February-13-2024"]
[Site "Chess.com"]
[Date "2024.02.13"]
[Round "10"]
[White "only_strong_moves"]
[Black "MyDream003"]
[Result "0-1"]
[WhiteElo "2676"]
[BlackElo "2727"]
[TimeControl "180+1"]
[EndTime "9:57:24 PST"]
[Termination "MyDream003 won by resignation"]

1. e4 {[%clk 0:02:58.9]} 1... c6 {[%clk 0:02:58]} 2. d4 {[%clk 0:02:59]} 2... d5
{[%clk 0:02:57.9]} 3. Nc3 {[%clk 0:02:59.2]} 3... dxe4 {[%clk 0:02:57.8]} 4.
Nxe4 {[%clk 0:03:00.1]} 4... Nf6 {[%clk 0:02:57.8]} 5. Nxf6+ {[%clk 0:03:00.2]}
5... exf6 {[%clk 0:02:58.7]} 6. Nf3 {[%clk 0:03:00.6]} 6... Bd6 {[%clk 0:02:58]}
7. Be2 {[%clk 0:03:01]} 7... O-O {[%clk 0:02:58.3]} 8. Be3 {[%clk 0:02:59.6]}
8... Bf5 {[%clk 0:02:56.1]} 9. O-O {[%clk 0:02:56.6]} 9... Re8 {[%clk
0:02:54.4]} 10. c4 {[%clk 0:02:48.2]} 10... Nd7 {[%clk 0:02:51.8]} 11. Rc1
{[%clk 0:02:44.1]} 11... Be4 {[%clk 0:02:41.9]} 12. Qb3 {[%clk 0:02:40.7]} 12...
Rb8 {[%clk 0:02:25.8]} 13. Nd2 {[%clk 0:02:21.4]} 13... Bg6 {[%clk 0:02:23.5]}
14. c5 {[%clk 0:02:14.5]} 14... Bc7 {[%clk 0:02:23.6]} 15. Rfe1 {[%clk
0:02:10.4]} 15... Nf8 {[%clk 0:02:20.8]} 16. Bc4 {[%clk 0:02:04.9]} 16... Ne6
{[%clk 0:02:16.1]} 17. d5 {[%clk 0:02:00.2]} 17... cxd5 {[%clk 0:02:17]} 18.
Bxd5 {[%clk 0:02:01.1]} 18... Nf4 {[%clk 0:02:00.2]} 19. Bc4 {[%clk 0:01:35.3]}
19... Nd3 {[%clk 0:01:43.2]} 20. Bxd3 {[%clk 0:01:35.4]} 20... Bxd3 {[%clk
0:01:44.1]} 21. Nc4 {[%clk 0:01:28.6]} 21... Be4 {[%clk 0:01:27]} 22. Nd6 {[%clk
0:01:25.8]} 22... Bxd6 {[%clk 0:01:20.4]} 23. cxd6 {[%clk 0:01:26.7]} 23... Qxd6
{[%clk 0:01:19.5]} 24. Bxa7 {[%clk 0:01:27.3]} 24... Ra8 {[%clk 0:01:16.3]} 25.
Bc5 {[%clk 0:01:27.1]} 25... Qd7 {[%clk 0:01:15.6]} 26. Rcd1 {[%clk 0:01:19.8]}
26... Qf5 {[%clk 0:01:12.2]} 27. Qa3 {[%clk 0:00:52.9]} 27... Rxa3 {[%clk
0:01:10.3]} 0-1

[Event "Early-Titled-Tuesday-Blitz-February-13-2024"]
[Site "Chess.com"]
[Date "2024.02.13"]
[Round "10"]
[White "AlmasRakhmatullaev"]
[Black "wqws"]
[Result "1-0"]
[WhiteElo "2859"]
[BlackElo "2662"]
[TimeControl "180+1"]
[EndTime "9:57:31 PST"]
[Termination "AlmasRakhmatullaev won by resignation"]

1. e4 {[%clk 0:03:00.9]} 1... e5 {[%clk 0:03:00]} 2. Nf3 {[%clk 0:03:00.2]} 2...
Nc6 {[%clk 0:03:00.3]} 3. Bc4 {[%clk 0:02:59.8]} 3... Nf6 {[%clk 0:03:00]} 4.
Ng5 {[%clk 0:02:58.6]} 4... d5 {[%clk 0:02:59.9]} 5. exd5 {[%clk 0:02:59.5]}
5... Na5 {[%clk 0:03:00.3]} 6. Bb5+ {[%clk 0:03:00.1]} 6... c6 {[%clk
0:03:00.7]} 7. dxc6 {[%clk 0:03:01]} 7... bxc6 {[%clk 0:03:01]} 8. Bd3 {[%clk
0:03:01.6]} 8... Be7 {[%clk 0:02:49.5]} 9. O-O {[%clk 0:03:00.9]} 9... O-O
{[%clk 0:02:45.9]} 10. Nc3 {[%clk 0:02:59.6]} 10... h6 {[%clk 0:02:44.2]} 11.
Nf3 {[%clk 0:02:58.7]} 11... Bd6 {[%clk 0:02:38.8]} 12. h3 {[%clk 0:02:54.8]}
12... Nb7 {[%clk 0:02:34.2]} 13. Re1 {[%clk 0:02:50.7]} 13... Nc5 {[%clk
0:02:34.2]} 14. Nxe5 {[%clk 0:02:41.1]} 14... Bxe5 {[%clk 0:02:31.2]} 15. Rxe5
{[%clk 0:02:42]} 15... Nxd3 {[%clk 0:02:32.1]} 16. cxd3 {[%clk 0:02:40.7]} 16...
Qxd3 {[%clk 0:02:33]} 17. Re3 {[%clk 0:02:41.4]} 17... Qg6 {[%clk 0:02:31.8]}
18. d4 {[%clk 0:02:40.4]} 18... Bf5 {[%clk 0:02:25.9]} 19. Rg3 {[%clk 0:02:36]}
19... Qh7 {[%clk 0:02:25.9]} 20. Bf4 {[%clk 0:02:35.4]} 20... Ne4 {[%clk
0:02:18]} 21. Nxe4 {[%clk 0:02:33.5]} 21... Bxe4 {[%clk 0:02:18.5]} 22. Be5
{[%clk 0:02:31.4]} 22... f6 {[%clk 0:02:18.5]} 23. Bf4 {[%clk 0:02:28.9]} 23...
Rad8 {[%clk 0:02:15.3]} 24. Rc1 {[%clk 0:02:27.7]} 24... Kh8 {[%clk 0:02:13.3]}
25. Qa4 {[%clk 0:02:19.5]} 25... Qf5 {[%clk 0:02:11.8]} 26. Qxa7 {[%clk
0:02:12.4]} 26... Rg8 {[%clk 0:01:57]} 27. Be3 {[%clk 0:02:08.4]} 27... h5
{[%clk 0:01:51.7]} 28. a4 {[%clk 0:01:46.7]} 28... g5 {[%clk 0:01:48.2]} 29. Rc5
{[%clk 0:01:31]} 29... Qg6 {[%clk 0:01:41.6]} 30. h4 {[%clk 0:01:15.4]} 30...
Bd5 {[%clk 0:01:34.8]} 31. hxg5 {[%clk 0:01:10.7]} 31... fxg5 {[%clk 0:01:31.5]}
32. Rxg5 {[%clk 0:01:05.4]} 32... Qb1+ {[%clk 0:01:23.1]} 33. Rc1 {[%clk
0:00:54.6]} 1-0

[Event "Early-Titled-Tuesday-Blitz-February-13-2024"]
[Site "Chess.com"]
[Date "2024.02.13"]
[Round "10"]
[White "AryanTari"]
[Black "bulletteemo"]
[Result "1-0"]
[WhiteElo "2940"]
[BlackElo "2612"]
[TimeControl "180+1"]
[EndTime "9:57:33 PST"]
[Termination "AryanTari won on time"]

1. e4 {[%clk 0:03:00.9]} 1... c5 {[%clk 0:02:59.5]} 2. Nc3 {[%clk 0:02:58.7]}
2... Nc6 {[%clk 0:02:58.6]} 3. f4 {[%clk 0:02:57.6]} 3... g6 {[%clk 0:02:56.5]}
4. Nf3 {[%clk 0:02:57.6]} 4... Bg7 {[%clk 0:02:55.9]} 5. Bb5 {[%clk 0:02:56.9]}
5... e6 {[%clk 0:02:54.5]} 6. Bxc6 {[%clk 0:02:56.5]} 6... bxc6 {[%clk
0:02:54.5]} 7. d3 {[%clk 0:02:55.8]} 7... Ne7 {[%clk 0:02:54.7]} 8. O-O {[%clk
0:02:55.4]} 8... Rb8 {[%clk 0:02:51.1]} 9. Qe1 {[%clk 0:02:54.2]} 9... O-O
{[%clk 0:02:49.5]} 10. b3 {[%clk 0:02:44]} 10... d6 {[%clk 0:02:24.3]} 11. e5
{[%clk 0:02:35.6]} 11... Nd5 {[%clk 0:01:46.4]} 12. Ne4 {[%clk 0:02:26.6]} 12...
Nb4 {[%clk 0:01:40.6]} 13. Qf2 {[%clk 0:02:23.6]} 13... dxe5 {[%clk 0:00:55.3]}
14. fxe5 {[%clk 0:02:21.8]} 14... Ba6 {[%clk 0:00:48.6]} 15. Bg5 {[%clk
0:02:17.6]} 15... Qc7 {[%clk 0:00:33.7]} 16. Nf6+ {[%clk 0:02:05.9]} 16... Bxf6
{[%clk 0:00:28.5]} 17. Bxf6 {[%clk 0:02:06]} 17... Nd5 {[%clk 0:00:18]} 18. Qh4
{[%clk 0:02:05.4]} 18... h5 {[%clk 0:00:17.9]} 19. g4 {[%clk 0:01:56.2]} 19...
Nxf6 {[%clk 0:00:11.9]} 20. Qxf6 {[%clk 0:01:53.7]} 20... Qd8 {[%clk 0:00:04.1]}
21. gxh5 {[%clk 0:01:53.1]} 21... Qxf6 {[%clk 0:00:03.7]} 22. exf6 {[%clk
0:01:54]} 22... Rbd8 {[%clk 0:00:01.2]} 23. hxg6 {[%clk 0:01:50.7]} 23... fxg6
{[%clk 0:00:02.1]} 24. Ne5 {[%clk 0:01:51]} 24... Rd5 {[%clk 0:00:02.6]} 25.
Rae1 {[%clk 0:01:47.6]} 25... Kh7 {[%clk 0:00:03.1]} 26. Rf3 {[%clk 0:01:46.6]}
26... Bc8 {[%clk 0:00:03.5]} 27. Rh3+ {[%clk 0:01:35.4]} 27... Kg8 {[%clk
0:00:04]} 28. Nxg6 {[%clk 0:01:36]} 28... Rg5+ {[%clk 0:00:02]} 29. Rg3 {[%clk
0:01:36.6]} 29... Rxg3+ {[%clk 0:00:01.6]} 30. hxg3 {[%clk 0:01:37.5]} 1-0

[Event "Early-Titled-Tuesday-Blitz-February-13-2024"]
[Site "Chess.com"]
[Date "2024.02.13"]
[Round "10"]
[White "Yeritsyaan"]
[Black "Bugcrusher"]
[Result "1-0"]
[WhiteElo "2616"]
[BlackElo "2462"]
[TimeControl "180+1"]
[EndTime "9:57:34 PST"]
[Termination "Yeritsyaan won on time"]

1. c4 {[%clk 0:03:00.9]} 1... b6 {[%clk 0:02:58.8]} 2. e4 {[%clk 0:02:58.4]}
2... Bb7 {[%clk 0:02:58.3]} 3. Nc3 {[%clk 0:02:56.6]} 3... e6 {[%clk 0:02:57.9]}
4. d3 {[%clk 0:02:55.2]} 4... Bb4 {[%clk 0:02:54]} 5. Nf3 {[%clk 0:02:55.1]}
5... c5 {[%clk 0:02:52.8]} 6. Be2 {[%clk 0:02:55]} 6... Ne7 {[%clk 0:02:52.7]}
7. O-O {[%clk 0:02:55.4]} 7... Bxc3 {[%clk 0:02:48.7]} 8. bxc3 {[%clk
0:02:56.3]} 8... O-O {[%clk 0:02:49.2]} 9. a4 {[%clk 0:02:55.6]} 9... a5 {[%clk
0:02:47.9]} 10. Qc2 {[%clk 0:02:48.8]} 10... d6 {[%clk 0:02:48]} 11. Nd2 {[%clk
0:02:38.9]} 11... e5 {[%clk 0:02:47.1]} 12. f4 {[%clk 0:02:38.6]} 12... f5
{[%clk 0:02:43.8]} 13. exf5 {[%clk 0:02:34.4]} 13... Nxf5 {[%clk 0:02:42.5]} 14.
Ne4 {[%clk 0:02:33]} 14... exf4 {[%clk 0:02:17.7]} 15. Bxf4 {[%clk 0:02:33.9]}
15... d5 {[%clk 0:02:05.5]} 16. cxd5 {[%clk 0:02:33.4]} 16... Bxd5 {[%clk
0:02:05.6]} 17. Bf3 {[%clk 0:02:31.2]} 17... Nc6 {[%clk 0:02:04.2]} 18. Rae1
{[%clk 0:02:28.6]} 18... Nh4 {[%clk 0:01:54.1]} 19. Bg5 {[%clk 0:02:22.8]} 19...
Nxf3+ {[%clk 0:01:52.1]} 20. Rxf3 {[%clk 0:02:23]} 20... Qd7 {[%clk 0:01:44.1]}
21. Rg3 {[%clk 0:02:23.1]} 21... Bxe4 {[%clk 0:01:42.6]} 22. Rxe4 {[%clk
0:02:23.6]} 22... Rae8 {[%clk 0:01:33.5]} 23. Qe2 {[%clk 0:02:06.4]} 23... Rxe4
{[%clk 0:01:21]} 24. Qxe4 {[%clk 0:02:07.3]} 24... Re8 {[%clk 0:01:20.7]} 25.
Qc4+ {[%clk 0:02:06.8]} 25... Qe6 {[%clk 0:01:19.9]} 26. Bh6 {[%clk 0:01:39]}
26... Qxc4 {[%clk 0:00:46.8]} 27. Rxg7+ {[%clk 0:01:37.8]} 1-0

[Event "Early-Titled-Tuesday-Blitz-February-13-2024"]
[Site "Chess.com"]
[Date "2024.02.13"]
[Round "10"]
[White "HansOnTwitch"]
[Black "FREDERICKtheMATE"]
[Result "1/2-1/2"]
[WhiteElo "3153"]
[BlackElo "2715"]
[TimeControl "180+1"]
[EndTime "9:57:35 PST"]
[Termination "Game drawn by repetition"]

1. d4 {[%clk 0:03:00.9]} 1... d5 {[%clk 0:02:59.4]} 2. Nc3 {[%clk 0:03:01.4]}
2... c6 {[%clk 0:02:59.9]} 3. Bf4 {[%clk 0:03:01.8]} 3... Bf5 {[%clk 0:02:59.6]}
4. f3 {[%clk 0:03:01.2]} 4... Nf6 {[%clk 0:02:59]} 5. g4 {[%clk 0:03:01.1]} 5...
Bg6 {[%clk 0:02:59.3]} 6. h4 {[%clk 0:03:01.8]} 6... h6 {[%clk 0:02:59.4]} 7. e3
{[%clk 0:03:02.3]} 7... e6 {[%clk 0:02:58.8]} 8. Bd3 {[%clk 0:03:02.7]} 8...
Bxd3 {[%clk 0:02:58.3]} 9. Qxd3 {[%clk 0:03:03.6]} 9... Nbd7 {[%clk 0:02:58.6]}
10. Nge2 {[%clk 0:03:04.3]} 10... b5 {[%clk 0:02:56.9]} 11. O-O-O {[%clk
0:02:57.7]} 11... Nb6 {[%clk 0:02:56.5]} 12. e4 {[%clk 0:02:47.3]} 12... b4
{[%clk 0:02:54.7]} 13. Nb1 {[%clk 0:02:47.4]} 13... a5 {[%clk 0:02:51.6]} 14. g5
{[%clk 0:02:44.9]} 14... Nfd7 {[%clk 0:02:41.9]} 15. gxh6 {[%clk 0:02:41.9]}
15... gxh6 {[%clk 0:02:42.8]} 16. Nd2 {[%clk 0:02:40.4]} 16... a4 {[%clk
0:02:42]} 17. Kb1 {[%clk 0:02:37.6]} 17... Qc8 {[%clk 0:02:28.7]} 18. Rhg1
{[%clk 0:02:36.3]} 18... Qa6 {[%clk 0:02:28.4]} 19. Nc1 {[%clk 0:02:33]} 19...
Nc4 {[%clk 0:02:11.3]} 20. exd5 {[%clk 0:02:30.5]} 20... cxd5 {[%clk 0:02:09.9]}
21. Nxc4 {[%clk 0:02:30.7]} 21... Qxc4 {[%clk 0:02:06.4]} 22. Qxc4 {[%clk
0:02:09]} 22... dxc4 {[%clk 0:02:07.3]} 23. d5 {[%clk 0:02:08.5]} 23... e5
{[%clk 0:01:56.3]} 24. Bxe5 {[%clk 0:02:08.5]} 24... Nxe5 {[%clk 0:01:56.3]} 25.
Rge1 {[%clk 0:02:09.1]} 25... f6 {[%clk 0:01:55]} 26. f4 {[%clk 0:02:09.4]}
26... Bd6 {[%clk 0:01:54.9]} 27. fxe5 {[%clk 0:02:09.8]} 27... Bxe5 {[%clk
0:01:52.4]} 28. Re4 {[%clk 0:02:07]} 28... Rc8 {[%clk 0:01:50.9]} 29. Ne2 {[%clk
0:02:05.7]} 29... Kd7 {[%clk 0:01:48.3]} 30. Nd4 {[%clk 0:01:59.4]} 30... Bxd4
{[%clk 0:01:30.1]} 31. Rdxd4 {[%clk 0:01:58.7]} 31... Rhe8 {[%clk 0:01:30.5]}
32. Kc1 {[%clk 0:01:09]} 32... Rxe4 {[%clk 0:01:16.2]} 33. Rxe4 {[%clk
0:01:09.9]} 33... Kd6 {[%clk 0:01:15.7]} 34. Re6+ {[%clk 0:01:09.2]} 34... Kxd5
{[%clk 0:01:16.2]} 35. Rxf6 {[%clk 0:01:10.1]} 35... Rg8 {[%clk 0:01:13.9]} 36.
Rxh6 {[%clk 0:01:02.2]} 36... Rg1+ {[%clk 0:01:13.4]} 37. Kd2 {[%clk 0:01:02.5]}
37... Rg2+ {[%clk 0:01:11]} 38. Kd1 {[%clk 0:01:02.8]} 38... Rg1+ {[%clk
0:01:10.9]} 39. Kd2 {[%clk 0:01:03.3]} 39... Rg2+ {[%clk 0:01:11.2]} 40. Kd1
{[%clk 0:00:58.8]} 40... Rg1+ {[%clk 0:01:05]} 41. Kd2 {[%clk 0:00:58.6]}
1/2-1/2

[Event "Early-Titled-Tuesday-Blitz-February-13-2024"]
[Site "Chess.com"]
[Date "2024.02.13"]
[Round "10"]
[White "dosto07"]
[Black "SimonKnightRivendell"]
[Result "1-0"]
[WhiteElo "2539"]
[BlackElo "2090"]
[TimeControl "180+1"]
[EndTime "9:57:36 PST"]
[Termination "dosto07 won by resignation"]

1. e4 {[%clk 0:03:00.9]} 1... d6 {[%clk 0:02:54.2]} 2. d4 {[%clk 0:03:00.5]}
2... g6 {[%clk 0:02:54.4]} 3. Nc3 {[%clk 0:03:00.5]} 3... Nf6 {[%clk 0:02:53.2]}
4. Nf3 {[%clk 0:03:00.7]} 4... Bg7 {[%clk 0:02:52.4]} 5. Be2 {[%clk 0:03:00.7]}
5... O-O {[%clk 0:02:51.6]} 6. O-O {[%clk 0:03:00]} 6... c6 {[%clk 0:02:51.7]}
7. a4 {[%clk 0:02:59.6]} 7... Nbd7 {[%clk 0:02:51.7]} 8. h3 {[%clk 0:02:53.8]}
8... e5 {[%clk 0:02:49.6]} 9. dxe5 {[%clk 0:02:53.2]} 9... dxe5 {[%clk
0:02:49.5]} 10. Be3 {[%clk 0:02:53.6]} 10... Qe7 {[%clk 0:02:41.8]} 11. Qc1
{[%clk 0:02:53.1]} 11... Rd8 {[%clk 0:02:39.7]} 12. Rd1 {[%clk 0:02:52.1]} 12...
b6 {[%clk 0:02:22.8]} 13. Bc4 {[%clk 0:02:35.7]} 13... Bb7 {[%clk 0:02:21.5]}
14. Qb1 {[%clk 0:02:24.7]} 14... Nf8 {[%clk 0:02:13.3]} 15. Ng5 {[%clk
0:02:18.2]} 15... Ne6 {[%clk 0:02:08.7]} 16. Nxe6 {[%clk 0:02:17.3]} 16... fxe6
{[%clk 0:02:08]} 17. Qa2 {[%clk 0:02:17.8]} 17... Kf7 {[%clk 0:02:04.1]} 18. f3
{[%clk 0:01:52.6]} 18... Ne8 {[%clk 0:02:00.8]} 19. Ne2 {[%clk 0:01:42.4]} 19...
Nd6 {[%clk 0:02:00]} 20. Bb3 {[%clk 0:01:42.7]} 20... c5 {[%clk 0:01:56.6]} 21.
c3 {[%clk 0:01:35.4]} 21... a5 {[%clk 0:01:55.1]} 22. Rd2 {[%clk 0:01:34.1]}
22... Ba6 {[%clk 0:01:49.3]} 23. Rad1 {[%clk 0:01:33.5]} 23... c4 {[%clk
0:01:44.9]} 24. Bc2 {[%clk 0:01:33.2]} 24... Rab8 {[%clk 0:01:23]} 25. Qa3
{[%clk 0:01:31.8]} 25... Qc7 {[%clk 0:00:55.1]} 26. Bg5 {[%clk 0:01:23]} 1-0

[Event "Early-Titled-Tuesday-Blitz-February-13-2024"]
[Site "Chess.com"]
[Date "2024.02.13"]
[Round "10"]
[White "TigrVShlyape"]
[Black "PabloZarnicki"]
[Result "1-0"]
[WhiteElo "2856"]
[BlackElo "2640"]
[TimeControl "180+1"]
[EndTime "9:57:38 PST"]
[Termination "TigrVShlyape won by resignation"]

1. e4 {[%clk 0:03:00.9]} 1... e6 {[%clk 0:02:57]} 2. d4 {[%clk 0:02:59.9]} 2...
d5 {[%clk 0:02:57]} 3. exd5 {[%clk 0:02:59.2]} 3... exd5 {[%clk 0:02:56.9]} 4.
Nf3 {[%clk 0:02:59.6]} 4... Nf6 {[%clk 0:02:55.8]} 5. Bd3 {[%clk 0:02:59.2]}
5... Bd6 {[%clk 0:02:55.3]} 6. Qe2+ {[%clk 0:02:59.6]} 6... Qe7 {[%clk
0:02:54.6]} 7. Qxe7+ {[%clk 0:02:58.7]} 7... Kxe7 {[%clk 0:02:54.6]} 8. O-O
{[%clk 0:02:54.2]} 8... Re8 {[%clk 0:02:54.3]} 9. Bg5 {[%clk 0:02:51.6]} 9...
Nd7 {[%clk 0:02:54.1]} 10. Nc3 {[%clk 0:02:40.6]} 10... c6 {[%clk 0:02:53.9]}
11. Rfe1+ {[%clk 0:02:39.9]} 11... Kf8 {[%clk 0:02:53.2]} 12. Rxe8+ {[%clk
0:02:39.8]} 12... Kxe8 {[%clk 0:02:46.8]} 13. Re1+ {[%clk 0:02:39.4]} 13... Kf8
{[%clk 0:02:46.9]} 14. Ne2 {[%clk 0:02:32.2]} 14... h6 {[%clk 0:02:46.9]} 15.
Bf4 {[%clk 0:02:30.2]} 15... Bxf4 {[%clk 0:02:43.2]} 16. Nxf4 {[%clk 0:02:30.3]}
16... g5 {[%clk 0:02:39.6]} 17. Ne2 {[%clk 0:02:29.8]} 17... Kg7 {[%clk
0:02:35.2]} 18. h4 {[%clk 0:02:28.3]} 18... g4 {[%clk 0:02:33.2]} 19. Nh2 {[%clk
0:02:27.4]} 19... Nf8 {[%clk 0:02:29.9]} 20. c3 {[%clk 0:02:26.7]} 20... Bd7
{[%clk 0:02:27.3]} 21. Nf4 {[%clk 0:02:23]} 21... Re8 {[%clk 0:02:24.3]} 22.
Rxe8 {[%clk 0:02:21.3]} 22... Bxe8 {[%clk 0:02:25.2]} 23. g3 {[%clk 0:02:14.8]}
23... Bd7 {[%clk 0:02:22.2]} 24. Kf1 {[%clk 0:02:09.4]} 24... Ne6 {[%clk
0:02:20.3]} 25. Nxe6+ {[%clk 0:02:08.1]} 25... Bxe6 {[%clk 0:02:20.4]} 26. Ke2
{[%clk 0:02:08.6]} 26... Ne8 {[%clk 0:01:52.8]} 27. Ke3 {[%clk 0:02:07]} 27...
Kf6 {[%clk 0:01:33]} 28. Kf4 {[%clk 0:02:06.1]} 28... h5 {[%clk 0:01:33.5]} 29.
f3 {[%clk 0:02:03.5]} 29... gxf3 {[%clk 0:01:30.6]} 30. Nxf3 {[%clk 0:02:04.4]}
30... Ng7 {[%clk 0:01:29.2]} 31. Ne5 {[%clk 0:02:01.4]} 31... Bc8 {[%clk
0:01:03.8]} 32. Be2 {[%clk 0:01:58.3]} 32... Ne6+ {[%clk 0:00:56.7]} 33. Ke3
{[%clk 0:01:57.5]} 33... Ng7 {[%clk 0:00:57.5]} 34. b4 {[%clk 0:01:54.3]} 34...
Bf5 {[%clk 0:00:53.2]} 35. a4 {[%clk 0:01:52.7]} 35... Bc8 {[%clk 0:00:42.9]}
36. a5 {[%clk 0:01:52.2]} 36... a6 {[%clk 0:00:41.5]} 37. Nd3 {[%clk 0:01:49]}
37... Nf5+ {[%clk 0:00:41.5]} 38. Kf4 {[%clk 0:01:46.1]} 38... Ng7 {[%clk
0:00:40.1]} 39. Nc5 {[%clk 0:01:44.7]} 39... Kg6 {[%clk 0:00:29.7]} 40. Ke5
{[%clk 0:01:44.3]} 40... Nf5 {[%clk 0:00:24.6]} 41. Bd3 {[%clk 0:01:43]} 41...
f6+ {[%clk 0:00:23.1]} 42. Kf4 {[%clk 0:01:43.3]} 1-0